Cogmind - Beta 13 @@@ ROGUE MODE // 2024.04.29 @ 22:39:09 Player: Gold Spoon Result: Destroyed by S-27 Virus with Autogun Performance ------------- Evolutions (5) 2500 Regions Visited (10) 2000 Robots Destroyed (107) 535 Value Destroyed (3808) 3808 Prototype IDs (37) 740 Alien Tech Used (0) 0 Bonus (334) 334 TOTAL SCORE: 9917 Bonus ------- High Alert Combat Kills 34 Aligned with FarCom 300 Cogmind --------- Core Integrity 0/1000 Matter 58/300 Energy 65/100 System Corruption 10% Temperature Cool (0) Movement Core (50) Location -5/Factory Parts ------- > --- POWER (1) -------- (None) > --- PROPULSION (4) --- (None) > --- UTILITY (8) ------ (None) > --- WEAPON (4) ------- Chainsword > --- INVENTORY (5) ---- Gravmag System Improved Melee Analysis Suite Advanced Melee Analysis Suite System Restoration Module Peak State ------------ > --- POWER ------------ Deuterium Engine > --- PROPULSION ------- Medium Treads Medium Treads > --- UTILITY ---------- Advanced Heat Sink Large Storage Unit Improved Signal Interpreter Improved Medium Armor Plating Hacking Suite Hacking Suite > --- WEAPON ----------- Minigun Gauss Rifle Assault Cannon Mini Assault Cannon > --- INVENTORY -------- Deuterium Engine Light Treads Improved Treads Improved Heat Sink Improved Signal Interpreter Improved Targeting Computer Kinecellerator Improved Medium Armor Plating Hacking Suite System Shield YOLO Cannon Advanced Assault Cannon Advanced Assault Cannon Heavy Rocket Launcher [Rating: 51] Favorites ----------- Power Deuterium Engine Engine Deuterium Engine Power Core Micro Nuclear Core Propulsion Light Treads Treads Light Treads Hover Unit Gravmag Array Utility Large Storage Unit Device Advanced Heat Sink Storage Large Storage Unit Processor Improved Signal Interpreter Hackware Hacking Suite Protection Improved Light Armor Plating Weapon Heavy Assault Rifle Energy Gun EM Pulse Gun Energy Cannon YOLO Cannon Ballistic Gun Heavy Assault Rifle Ballistic Cannon Assault Cannon Launcher Heavy Rocket Launcher Slashing Weapon Chainsword Build | -11 -10 -10 -10 -9 -8 -7 -7 -7 -6 -5 ------- Run | Yrd Mat Min Exi Min Mat Fac Was Fac Fac Fac Slots Evolved 10 | . . . . . 4 2 . . 2 2 Power . | . . . . . . . . . . . Propulsion 2 | . . . . . . . . . 1 1 Utility 6 | . . . . . 2 2 . . 1 1 Weapon 2 | . . . . . 2 . . . . . Parts Attached 92 | 6 4 1 . . 24 34 1 . 10 12 Power 9 | 1 . . . . 1 3 . . 1 3 Engine 4 | 1 . . . . 1 2 . . . . Core 5 | . . . . . . 1 . . 1 3 Reactor . | . . . . . . . . . . . Propulsion 20 | 2 1 . . . 5 4 . . 4 4 Treads 12 | 2 1 . . . 5 4 . . . . Leg . | . . . . . . . . . . . Wheel . | . . . . . . . . . . . Hover 8 | . . . . . . . . . 4 4 Flight . | . . . . . . . . . . . Utility 27 | 1 3 . . . 7 13 . . 1 2 Device 6 | . . . . . . 5 . . . 1 Storage 4 | 1 2 . . . . . . . . 1 Processor 6 | . . . . . 4 2 . . . . Hackware 3 | . . . . . . 2 . . 1 . Protection 8 | . 1 . . . 3 4 . . . . Artifact . | . . . . . . . . . . . Weapon 36 | 2 . 1 . . 11 14 1 . 4 3 Energy Gun 2 | 1 . . . . 1 . . . . . Energy Cannon 6 | . . . . . . . 1 . 4 1 Ballistic Gun 16 | 1 . 1 . . 7 7 . . . . Ballistic Cannon 8 | . . . . . 2 5 . . . 1 Launcher 3 | . . . . . 1 2 . . . . Special Weapon . | . . . . . . . . . . . Impact Weapon . | . . . . . . . . . . . Slashing Weapon 1 | . . . . . . . . . . 1 Piercing Weapon . | . . . . . . . . . . . Special Melee Weapon . | . . . . . . . . . . . Unidentified Prototypes 3 | . . . . . . 1 . . . 2 Parts Lost 35 | . . 1 . . 6 17 3 . 1 7 Power 4 | . . . . . . 1 1 . . 2 Propulsion 6 | . . . . . 1 3 . . . 2 Utility 10 | . . . . . 2 6 . . 1 1 Weapon 15 | . . 1 . . 3 7 2 . . 2 Highest Loss Streak 5 | . . 1 . . 3 5 3 . 1 3 To Critical Strikes . | . . . . . . . . . . . Average Slot Usage (%) 79 | . 97 99 100 100 97 96 41 . 3 19 Engine 5 | . 14 14 14 14 9 3 3 . . . Core 2 | . . . . . . 3 . . . 3 Treads 14 | . 28 28 28 28 17 14 5 . . . Device 4 | . . . . . . 9 3 . . 1 Storage 7 | . 14 14 14 14 9 7 3 . . . Processor 7 | . . . . . 17 10 3 . . . Hackware 2 | . . . . . . 5 6 . . . Protection 7 | . 11 14 14 14 8 8 3 . . . Energy Gun 1 | . 14 2 . . 4 . . . . . Ballistic Gun 14 | . 14 25 28 28 24 14 6 . . . Ballistic Cannon 7 | . . . . . 6 14 5 . . 1 Naked Turns 960 | . . . . . . . 72 129 715 44 Heaviest Build 53 | 12 30 30 30 30 48 53 53 . 18 25 Greatest Support 56 | 40 40 40 40 40 42 56 56 3 27 40 Greatest Overweight (x) 3 | 1 . . . . 1 2 1 . 3 . Average Overweight (x) . | . . . . . . . . . . . Largest Inventory Capacity 15 | 8 15 15 15 15 15 15 15 5 5 5 Average Capacity 12 | 6 12 15 15 15 15 15 9 5 5 5 Most Carried 15 | 4 10 9 10 11 15 15 15 5 5 5 Average Carried 10 | 1 6 8 8 10 12 13 9 5 4 3 Final Capacity 15 | 8 15 15 15 15 15 15 5 5 5 5 Final Carried 15 | 1 9 8 10 11 14 15 5 5 5 4 Class Distribution -------------------- 40% | Mutant 33% | Skirmisher 11% | Tank 7% | Hacker-Skirmisher 3% | Scavenger-Skirmisher 3% | Scavenger-Tank Dominant Class ---------------- Mutant | -10/Materials Mutant | -10/Mines Mutant | -10/Exiles Mutant | -9/Mines Skirmisher | -8/Materials Skirmisher | -7/Factory Mutant | -7/Waste Mutant | -7/Factory Mutant | -6/Factory Mutant | -5/Factory Resources | -11 -10 -10 -10 -9 -8 -7 -7 -7 -6 -5 ----------- Run | Yrd Mat Min Exi Min Mat Fac Was Fac Fac Fac Matter Collected 3147 | 225 109 90 . 72 701 1736 . 107 42 65 Remotely 329 | . . . . . . 329 . . . . Salvage Created 3389 | . 253 148 . 77 1127 1416 . . 323 45 Parts 219 | . 10 7 . 6 74 97 . . 20 5 Haulers Intercepted 2 | . 2 . . . . . . . . . Recyclers Shooed 2 | . . . . . . 2 . . . . Parts Field Recycled . | . . . . . . . . . . . Retrieved Matter . | . . . . . . . . . . . Parts Self-Destructed . | . . . . . . . . . . . Prevented . | . . . . . . . . . . . Kills | -11 -10 -10 -10 -9 -8 -7 -7 -7 -6 -5 ------- Run | Yrd Mat Min Exi Min Mat Fac Was Fac Fac Fac Combat Hostiles Destroyed 78 | . . 5 . 2 28 34 . . 7 2 Guns 35 | . . 5 . 2 22 6 . . . . Cannons 34 | . . . . . 3 24 . . 5 2 AOE 9 | . . . . . 3 4 . . 2 . Classes Destroyed 13 | . 3 2 . . 5 2 . . 1 . Worker 6 | . . . . . 2 4 . . . . Builder 5 | . . . . . 1 2 . . 2 . Hauler 2 | . 2 . . . . . . . . . Recycler 2 | . 1 . . . . 1 . . . . Operator 3 | . . . . . . 2 . . . 1 Watcher 11 | . 3 . . . 4 3 . . 1 . Swarmer 15 | . . 3 . . 9 3 . . . . Grunt 33 | . . 2 . 2 11 15 . . 3 . Brawler 2 | . . . . . 1 . . . 1 . Sentry 10 | . . . . . 6 3 . . 1 . Hunter 4 | . . . . . 1 3 . . . . Programmer 13 | . . . . . . 10 . . 1 2 Heavy 1 | . . . . . . . . . 1 . Best Kill Streak 7 | . 2 3 . 2 7 6 . . 6 1 Combat Bots Only 6 | . . 3 . 2 6 6 . . 4 1 Max Kills in Single Turn 4 | . 1 1 . 1 2 4 . . 3 1 Gunslinging 1 | . . . . . 1 . . . . . Exploded 2 | . . . . . 2 2 . . 1 . Melee . | . . . . . . . . . . . Uniques/NPCs Destroyed . | . . . . . . . . . . . Combat | -11 -10 -10 -10 -9 -8 -7 -7 -7 -6 -5 -------- Run | Yrd Mat Min Exi Min Mat Fac Was Fac Fac Fac Hostile Shots Fired 776 | . 12 23 . 32 118 282 10 14 77 208 Missed 269 | . 3 7 . 10 24 89 1 9 31 95 Damage Taken 8365 | . 125 200 . 260 1349 2629 489 79 1037 2197 Core 2524 | . 6 8 . 35 105 235 374 79 679 1003 Absorbed by Shields . | . . . . . . . . . . . Regen/Repaired (Parts) 644 | . 45 . . . . 264 . . . 335 Core Remaining (%) 56 | 100 . . . 80 80 . . 1 20 . Volleys Fired 258 | . 21 15 . 12 67 94 1 . 10 38 Largest 4 | . 2 2 . 2 4 4 1 . 1 1 Hottest 156 | . 60 60 . 40 134 156 100 . 100 81 Shots Fired 718 | . 43 28 . 24 232 342 1 . 10 38 Gun 483 | . 43 28 . 24 216 172 . . . . Cannon 230 | . . . . . 14 167 1 . 10 38 Launcher 5 | . . . . . 2 3 . . . . Special . | . . . . . . . . . . . Kinetic 610 | . 21 15 . 24 188 339 . . . 23 Thermal 53 | . . . . . 42 . 1 . 10 . Explosive 5 | . . . . . 2 3 . . . . Electromagnetic 50 | . 22 13 . . . . . . . 15 Robot Hit Streak 12 | . 6 9 . 7 12 8 4 . 5 5 Robot Miss Streak 9 | . 5 2 . 4 7 9 . . 1 3 Penetration Max . | . . . . . . . . . . . Secondary Targets 8 | . . 1 . . 7 . . . . . Max Gunslinging Chain 1 | . . 1 . . 1 . . . . . Shots Hit Robots 401 | . 20 22 . 13 137 179 1 . 8 21 Core Hits 193 | . 7 6 . 7 69 84 1 . 10 9 Critical Kills . | . . . . . . . . . . . Critical Parts Destroyed . | . . . . . . . . . . . Critical Strikes 6 | . 1 . . . 4 1 . . . . Burn 4 | . . . . . 4 . . . . . Blast 1 | . . . . . . 1 . . . . Corrupt 1 | . 1 . . . . . . . . . Melee Attacks 1 | . . . . . . . . . . 1 Impact . | . . . . . . . . . . . Slashing 1 | . . . . . . . . . . 1 Piercing . | . . . . . . . . . . . Sneak Attacks . | . . . . . . . . . . . Combat Hostiles . | . . . . . . . . . . . Follow-up Attacks . | . . . . . . . . . . . Damage Inflicted 10244 | . 353 290 . 200 2523 4467 254 5 1670 482 Guns 4143 | . 305 284 . 200 1838 1516 . . . . Cannons 4164 | . . . . . 313 2414 78 . 886 473 Explosions 1871 | . 41 . . . 358 518 173 . 781 . Melee . | . . . . . . . . . . . Ramming 66 | . 7 6 . . 14 19 3 5 3 9 Kinetic 6591 | . 150 169 . 200 1732 3930 . . . 410 Thermal 2378 | . 41 . . . 419 . 251 . 1667 . Explosive 876 | . . . . . 358 518 . . . . Electromagnetic 333 | . 155 115 . . . . . . . 63 Impact . | . . . . . . . . . . . Slashing . | . . . . . . . . . . . Piercing . | . . . . . . . . . . . Highest Corruption 10 | . 1 1 1 1 2 3 3 3 1 10 Average Corruption 2 | . 1 1 1 1 2 2 3 3 1 8 Corruption Purged . | . . . . . . . . . . . Corruption Blocked . | . . . . . . . . . . . Effects 95 | . 5 4 2 1 4 58 . 3 2 16 Message Errors 30 | . 2 2 . 1 2 18 . 1 . 4 Matter Fused 19 | . 1 1 . . 1 9 . . 2 5 Heat Flow Errors 10 | . . 1 . . . 7 . 1 . 1 Energy Discharges 15 | . 1 . 1 . . 11 . . . 2 Parts Fused 1 | . . . . . . 1 . . . . Data Loss (minor) 10 | . . . . . . 8 . . . 2 Data Loss (major) 7 | . . . 1 . 1 3 . . . 2 Misfires 2 | . 1 . . . . 1 . . . . Alerts 1 | . . . . . . . . 1 . . Overload Shots . | . . . . . . . . . . . Overflow Damage 400 | . . . . . 5 116 . . 253 26 Projectiles 280 | . . . . . 4 64 . . 186 26 Explosions 120 | . . . . . 1 52 . . 67 . Melee . | . . . . . . . . . . . Knockbacks 32 | . . . . . 3 22 . . . 7 Impact 1 | . . . . . . . . . . 1 Kinetic 30 | . . . . . 3 21 . . . 6 Secondary 1 | . . . . . . 1 . . . . Self-Inflicted Damage 199 | . . . . . 25 . 69 2 99 4 Shots 4 | . . . . . 1 . 1 . 2 . Rammed 15 | . 2 1 . . 2 1 1 1 3 4 Targets Rammed 16 | . 2 1 . . 3 1 1 1 3 4 Kicked . | . . . . . . . . . . . Crushed 1 | . . . . . 1 . . . . . Highest Temperature 367 | . 27 210 . 38 367 246 11 69 17 261 Average Temperature 78 | . 9 101 . 23 128 48 6 35 9 59 Received Heat Transfer 1869 | . . 102 . 144 603 807 . 9 195 9 Effects 6 | . . . . . 6 . . . . . Shutdowns 1 | . . . . . 1 . . . . . Energy Bleed 2 | . . . . . 2 . . . . . Interference 3 | . . . . . 3 . . . . . Siege Activations . | . . . . . . . . . . . Robots Corrupted . | . . . . . . . . . . . Combat Hostiles . | . . . . . . . . . . . Parts Fried 3 | . 3 . . . . . . . . . Impact Corruptions . | . . . . . . . . . . . Robots Melted . | . . . . . . . . . . . Combat Hostiles . | . . . . . . . . . . . Parts Melted 4 | . . . . . 2 . . . 2 . Heat Transferred 3259 | . 50 . . . 1369 . 320 . 1520 . Parts Sabotaged . | . . . . . . . . . . . Parts Stolen . | . . . . . . . . . . . Parts Stripped . | . . . . . . . . . . . Power Chain Reactions 1 | . 1 . . . . . . . . . Alert | -11 -10 -10 -10 -9 -8 -7 -7 -7 -6 -5 ------- Run | Yrd Mat Min Exi Min Mat Fac Was Fac Fac Fac Peak Influence 471 | . 94 127 . 40 409 471 178 109 306 215 Initial 163 | . . 2 . . 15 47 163 109 53 30 Average 131 | . 17 52 . 8 189 165 151 109 120 67 Maximum Alert Level 2 | . . . . . 2 2 . . 1 1 Low Security (%) 74 | 100 100 100 . 100 53 64 100 100 83 96 Level 1 19 | . . . . . 38 24 . . 16 3 Level 2 6 | . . . . . 7 10 . . . . Level 3 . | . . . . . . . . . . . Level 4 . | . . . . . . . . . . . Level 5 . | . . . . . . . . . . . High Security . | . . . . . . . . . . . Max Security . | . . . . . . . . . . . Squads Dispatched 23 | . . . . . 3 15 . . 4 1 Investigation 5 | . . . . . . 3 . . 2 . Extermination 11 | . . . . . . 9 . . 1 1 Reinforcement 5 | . . . . . 1 3 . . 1 . Assault . | . . . . . . . . . . . Garrison 2 | . . . . . 2 . . . . . Intercept . | . . . . . . . . . . . Searches Triggered . | . . . . . . . . . . . Construction Impeded . | . . . . . . . . . . . Haulers Reinforced . | . . . . . . . . . . . Active Scanning Responses . | . . . . . . . . . . . Cargo Convoy Interrupts . | . . . . . . . . . . . Stealth | -11 -10 -10 -10 -9 -8 -7 -7 -7 -6 -5 --------- Run | Yrd Mat Min Exi Min Mat Fac Was Fac Fac Fac Distress Signals 5 | . . . . . 2 2 . . 1 . Communications Jammed . | . . . . . . . . . . . Distress Signals . | . . . . . . . . . . . Times Spotted 166 | . 11 5 . 3 40 47 6 4 19 31 Peak Tracking Total 11 | . 3 3 . 3 5 4 6 4 7 11 Tactical Retreats 9 | . . . . . . . . . 3 6 Traps | -11 -10 -10 -10 -9 -8 -7 -7 -7 -6 -5 ------- Run | Yrd Mat Min Exi Min Mat Fac Was Fac Fac Fac Traps Triggered 9 | . 1 . . . 1 1 . 1 4 1 Indirectly . | . . . . . . . . . . . Trap Hack Attempts . | . . . . . . . . . . . Triggered . | . . . . . . . . . . . Disarmed . | . . . . . . . . . . . Reprogrammed . | . . . . . . . . . . . Reused . | . . . . . . . . . . . Traps Extracted . | . . . . . . . . . . . Installed . | . . . . . . . . . . . Triggered 1 | . 1 . . . . . . . . . Machines | -11 -10 -10 -10 -9 -8 -7 -7 -7 -6 -5 ---------- Run | Yrd Mat Min Exi Min Mat Fac Was Fac Fac Fac Machines Disabled 7 | . . . . . 1 3 . . 3 . Max in Single Turn 2 | . . . . . 1 1 . . 2 . Garrison Access 2 | . . . . . 1 1 . . . . Machines Repaired . | . . . . . . . . . . . Machines Dismantled . | . . . . . . . . . . . Machines Sabotaged . | . . . . . . . . . . . Overloaded Fab Kills . | . . . . . . . . . . . Hacking | -11 -10 -10 -10 -9 -8 -7 -7 -7 -6 -5 --------- Run | Yrd Mat Min Exi Min Mat Fac Was Fac Fac Fac Machines Accessed 33 | . 5 1 1 . 6 10 . . 6 4 Terminals 22 | . 4 1 . . 5 5 . . 5 2 Fabricators . | . . . . . . . . . . . Repair Stations 6 | . 1 . . . . 3 . . . 2 Recycling Units 1 | . . . . . . . . . 1 . Scanalyzers . | . . . . . . . . . . . Garrison Access 3 | . . . . . 1 2 . . . . Total Hacks 78 | . 11 1 1 . 13 28 . . 13 11 Successful 39 | . 6 1 1 . 6 14 . . 4 7 Failed 39 | . 5 . . . 7 14 . . 9 4 Catastrophic 11 | . 1 . . . 3 2 . . 4 1 Database Lockouts . | . . . . . . . . . . . Manual 7 | . . . 1 . 2 2 . . 2 . Terminals 46 | . 6 1 . . 10 13 . . 12 4 Fabricators . | . . . . . . . . . . . Repair Stations 23 | . 5 . . . . 11 . . . 7 Recycling Units 1 | . . . . . . . . . 1 . Scanalyzers . | . . . . . . . . . . . Garrison Access 7 | . . . . . 3 4 . . . . Terminal Hacks 20 | . 2 1 1 . 5 6 . . 3 2 Record 1 | . . 1 . . . . . . . . Prototype ID Bank 5 | . . . . . 1 2 . . 1 1 Alert Level 4 | . 1 . . . 1 1 . . 1 . Unreport Threat 3 | . . . . . 2 1 . . . . Locate Traps 3 | . . . . . 1 1 . . . 1 Security Status 1 | . . . . . . 1 . . . . Transport Status 1 | . . . . . . . . . 1 . Hauler Manifests 1 | . 1 . . . . . . . . . Derelict Proto ID Bank 1 | . . . 1 . . . . . . . Fabricator Hacks . | . . . . . . . . . . . Repair Station Hacks 16 | . 4 . . . . 7 . . . 5 Scan Component 9 | . 2 . . . . 4 . . . 3 Repair 7 | . 2 . . . . 3 . . . 2 Recycling Unit Hacks 1 | . . . . . . . . . 1 . Report Inventory 1 | . . . . . . . . . 1 . Scanalyzer . | . . . . . . . . . . . Garrison Access Hacks 2 | . . . . . 1 1 . . . . Seal Access 2 | . . . . . 1 1 . . . . Unauthorized Hacks . | . . . . . . . . . . . Terminals . | . . . . . . . . . . . Fabricators . | . . . . . . . . . . . Repair Stations . | . . . . . . . . . . . Recycling Units . | . . . . . . . . . . . Scanalyzers . | . . . . . . . . . . . Garrison Access . | . . . . . . . . . . . Data Cores Recovered 1 | . . . . . . 1 . . . . Used . | . . . . . . . . . . . Hacking Detections 26 | . 2 . . . 5 9 . . 6 4 Full Trace Events 4 | . . . . . . 3 . . 1 . Feedback Events . | . . . . . . . . . . . Feedback Blocked . | . . . . . . . . . . . Robot Schematics Acquired . | . . . . . . . . . . . Robots Built . | . . . . . . . . . . . Authchips . | . . . . . . . . . . . Time . | . . . . . . . . . . . Total Robot Build Rating . | . . . . . . . . . . . Part Schematics Acquired . | . . . . . . . . . . . Parts Built . | . . . . . . . . . . . Authchips . | . . . . . . . . . . . Time . | . . . . . . . . . . . Total Part Build Rating . | . . . . . . . . . . . Parts Repaired 7 | . 2 . . . . 3 . . . 2 Time 324 | . 52 . . . . 152 . . . 120 Parts Recycled . | . . . . . . . . . . . Recycled Matter . | . . . . . . . . . . . Retrieved Matter . | . . . . . . . . . . . Retrieved Components . | . . . . . . . . . . . Parts Scanalyzed . | . . . . . . . . . . . Part Schematics Acquired . | . . . . . . . . . . . Parts Damaged . | . . . . . . . . . . . Bothacking | -11 -10 -10 -10 -9 -8 -7 -7 -7 -6 -5 ------------ Run | Yrd Mat Min Exi Min Mat Fac Was Fac Fac Fac Used RIF Installer . | . . . . . . . . . . . Robots Hacked . | . . . . . . . . . . . Non-combat . | . . . . . . . . . . . Combat . | . . . . . . . . . . . Robot Hacks Applied . | . . . . . . . . . . . Relay Couplers Released . | . . . . . . . . . . . Fabnet Peak Effective % . | . . . . . . . . . . . Robots Rewired . | . . . . . . . . . . . Allies Hacked . | . . . . . . . . . . . Hacks Repelled . | . . . . . . . . . . . Allies | -11 -10 -10 -10 -9 -8 -7 -7 -7 -6 -5 -------- Run | Yrd Mat Min Exi Min Mat Fac Was Fac Fac Fac Total Allies 1 | . . . . . . . 1 . . . Largest Group 1 | . . . . . . . 1 . . . Highest-Rated Group 31 | . . . . . . . 31 . . . Highest-Rated Ally 31 | . . . . . . . 31 . . . Total Orders . | . . . . . . . . . . . Ally Attacks 4 | . . . . . . . 4 . . . Total Damage 86 | . . . . . . . 86 . . . Kills . | . . . . . . . . . . . Allies Corrupted . | . . . . . . . . . . . Allies Melted . | . . . . . . . . . . . Intel | -11 -10 -10 -10 -9 -8 -7 -7 -7 -6 -5 ------- Run | Yrd Mat Min Exi Min Mat Fac Was Fac Fac Fac Robot Analysis Total . | . . . . . . . . . . . Derelict Logs Recovered 1 | . . 1 . . . . . . . . Drone Launches . | . . . . . . . . . . . Drone Recoveries . | . . . . . . . . . . . Exploration | -11 -10 -10 -10 -9 -8 -7 -7 -7 -6 -5 ------------- Run | Yrd Mat Min Exi Min Mat Fac Was Fac Fac Fac Turns Passed 11468 | 73 959 752 336 194 1439 5386 141 129 1229 830 Spaces Moved 6514 | 46 515 442 210 98 549 2268 167 246 1073 900 Core 1303 | 13 . . . . . . 129 246 828 87 Treads 4153 | 33 515 442 210 98 549 2268 38 . . . Legs . | . . . . . . . . . . . Wheels . | . . . . . . . . . . . Hover 1058 | . . . . . . . . . 245 813 Flight . | . . . . . . . . . . . Fastest Speed 50 | 50 160 160 160 160 152 160 50 50 50 50 Average Speed 142 | 132 160 160 160 160 205 208 75 50 54 56 Slowest Speed 330 | 160 160 160 160 160 245 330 240 50 200 60 Overloaded Moves . | . . . . . . . . . . . Propulsion Burnouts . | . . . . . . . . . . . Robots Hopped . | . . . . . . . . . . . Cave-ins Triggered . | . . . . . . . . . . . Exploration Rate (%) 38 | 3 63 62 41 33 47 42 74 7 29 20 Regions Visited 10 Branch Regions 3 Pre-discovered Areas 1 | . . 1 . . . . . . . . Known Exits Taken 1 | . . . . . 1 . . . . . Unknown Exits Taken 7 | 1 1 1 1 1 . . . 1 1 . Scrap Searched 1 | . . 1 . . . . . . . . Spaces Dug . | . . . . . . . . . . . Terrain Destroyed 136 | . 2 . . . 20 21 22 . 69 2 Melee . | . . . . . . . . . . . Projectile 15 | . . . . . 1 11 . . 1 2 AOE 121 | . 2 . . . 19 10 22 . 68 . Terrain Rammed . | . . . . . . . . . . . Walls Destroyed . | . . . . . . . . . . . Machines Disabled . | . . . . . . . . . . . Actions | -11 -10 -10 -10 -9 -8 -7 -7 -7 -6 -5 --------- Run | Yrd Mat Min Exi Min Mat Fac Was Fac Fac Fac Total 8182 | 58 607 458 210 111 709 2714 178 251 1694 1192 Wait 1122 | . 51 . . 1 21 267 8 3 562 209 Move 6505 | 45 514 441 209 97 548 2268 166 245 1072 900 Hop . | . . . . . . . . . . . Pick Up 116 | 7 13 . 1 1 30 36 . 1 10 17 Fast Attach . | . . . . . . . . . . . Attach 74 | 6 2 1 . . 17 25 1 . 10 12 Detach 9 | . . . . . 1 1 1 . 4 2 Swap 18 | . 2 . . . 7 9 . . . . Drop 46 | . 2 . . . 15 13 . 1 6 9 Fire 258 | . 21 15 . 12 67 94 1 . 10 38 Melee 1 | . . . . . . . . . . 1 Ram 9 | . . . . . . . 1 1 3 4 Kick . | . . . . . . . . . . . Crush 7 | . 2 1 . . 3 1 . . . . Escape Stasis 17 | . . . . . . . . . 17 . Rewire . | . . . . . . . . . . . Trap . | . . . . . . . . . . . Miscellaneous . | . . . . . . . . . . . Route ------- -11/Scrapyard -10/Materials (discovered 3 exits: [*Mat] / *Min x2) -10/Mines (discovered 3 exits: [*Mat x2] / *Exi) -10/Exiles -9/Mines -8/Materials (discovered 2 exits: *Fac x2) -7/Factory -7/Waste -7/Factory -6/Factory -5/Factory History --------- Turn | Location | Event 8 | -11/Scrapyard | Discovered new exit (range 15) 74 | -11/Scrapyard | Entered Materials 317 | -10/Materials | Build established: Mutant 346 | -10/Materials | Discovered new exit (range 12) 403 | -10/Materials | Discovered new exit (range 9) 557 | -10/Materials | Discovered new exit (range 10) 589 | -10/Materials | Repaired Lgt. Treads 616 | -10/Materials | Repaired Signal Interpreter 1033 | -10/Materials | Entered Mines 1034 | -10/Mines | Learned location of Storage (-9) 1110 | -10/Mines | Met a Derelict bent on vengeance 1154 | -10/Mines | Discovered new exit (range 6) 1305 | -10/Mines | Discovered new exit (range 8) 1396 | -10/Mines | Learned Materials garrison access intel 1777 | -10/Mines | Deemed a non-threat by the Exiles lab entrance 1778 | -10/Mines | Discovered new exit (range 5) 1785 | -10/Mines | Entered Exiles 1824 | -10/Exiles | Met 8R-AWN 1851 | -10/Exiles | Met EX-HEX 1897 | -10/Exiles | Met EX-BIN 1917 | -10/Exiles | Aligned with FarCom system 1918 | -10/Exiles | Given EX-Vault access code 1955 | -10/Exiles | Opened EX-Vault 1966 | -10/Exiles | Found YOLO Cannon 2001 | -10/Exiles | Warned to stay clear of 0b10 Research branches 2102 | -10/Exiles | Discovered new exit (range 14) 2121 | -10/Exiles | Left Exiles lab with YOLO Cannon 2121 | -10/Exiles | Entered Mines 2140 | -9/Mines | Received a Rocket Launcher from a helpful Derelict 2297 | -9/Mines | Discovered new exit (range 11) 2315 | -9/Mines | Entered Materials 2315 | -8/Materials | Evolved 4 slots: Utility x2, Weapon x2 2316 | -8/Materials | Loaded intel: 1 garrison access location 2639 | -8/Materials | Build established: Skirmisher 2730 | -8/Materials | Garrison activated, responded to threat 2852 | -8/Materials | Lost 3 parts (1u2w) 3047 | -8/Materials | Discovered new exit (range 16) 3096 | -8/Materials | Identified exit to Factory 3167 | -8/Materials | Build established: Scavenger-Skirmisher 3574 | -8/Materials | Build established: Skirmisher 3654 | -8/Materials | Discovered exit to Factory (range 16) 3754 | -8/Materials | Entered Factory 3754 | -7/Factory | Evolved 2 slots: Utility x2 4042 | -7/Factory | Build established: Tank 5029 | -7/Factory | Build established: Scavenger-Tank 5655 | -7/Factory | Build established: Skirmisher 7259 | -7/Factory | Lost 5 parts (1n2u2w) 8581 | -7/Factory | Build established: Hacker-Skirmisher 8705 | -7/Factory | Repaired Med. Treads 8777 | -7/Factory | Repaired Mni. Assault Cannon 8817 | -7/Factory | Repaired Assault Cannon 9113 | -7/Factory | Discovered new exit (range 10) 9140 | -7/Factory | Sucked down chute 9140 | -7/Factory | Entered Waste 9141 | -7/Waste | Met a frightened Derelict 9167 | -7/Waste | Spotted C-40 Crusher 9185 | -7/Waste | Spotted C-40 Crusher 9197 | -7/Waste | Spotted C-40 Crusher 9198 | -7/Waste | Crushed by Compactor (1 part destroyed, 1 dropped) 9199 | -7/Waste | Spotted C-40 Crusher 9201 | -7/Waste | Crushed by Compactor (1 part destroyed, 1 dropped) 9204 | -7/Waste | Released all parts (8) 9225 | -7/Waste | Spotted C-40 Crusher 9232 | -7/Waste | Lost 3 parts (1p2w) 9233 | -7/Waste | Core integrity fell below 50% 9242 | -7/Waste | Core integrity fell below 20% 9245 | -7/Waste | Spotted C-40 Crusher 9276 | -7/Waste | Discovered new exit (range 11) 9281 | -7/Waste | Entered Factory 9402 | -7/Factory | Discovered new exit (range 14) 9410 | -7/Factory | Entered another Factory area 9410 | -6/Factory | Evolved 2 slots: Propulsion x1, Utility x1 9492 | -6/Factory | Build established: Mutant 9740 | -6/Factory | Spotted B-75 Beast 9834 | -6/Factory | Core integrity fell below 50% 10624 | -6/Factory | Discovered new exit (range 13) 10639 | -6/Factory | Entered another Factory area 10639 | -5/Factory | Evolved 2 slots: Propulsion x1, Utility x1 11172 | -5/Factory | System corruption reached 10% 11267 | -5/Factory | Repaired Broken Gravmag Array 11319 | -5/Factory | Repaired Gravmag Array 11395 | -5/Factory | Core integrity fell below 50% 11427 | -5/Factory | Core integrity fell below 20% 11450 | -5/Factory | Lost 3 parts (1p2n) 11469 | -5/Factory | Destroyed by S-27 Virus with Autogun Last Messages --------------- K-01 Serf destroyed. K-01 Serf collects debris. Knocked back. K-01 Serf collects debris. Slammed into K-01 Serf. R-10 Processor collects Wheel. Slammed into K-01 Serf. K-01 Serf knocked back. Slammed into K-01 Serf. System corrupted: Substantial component data lost. Gravmag Array destroyed. K-01 Serf destroyed. R-10 Processor collects Wheel. Mic. Fission Core destroyed. Gravmag Array destroyed. R-10 Processor collects Lgt. Ion Engine. 3STJ0NKW0DBQ 7CNXBYTI Acquired Chainsword. System corrupted: Energy discharge (-37). Map ----- +----------------------------------------------------+ | ?????????????????????????????????????????????????? | | ?????????????????????????????????????????????????? | | ?????????????????????????????????????????????????? | | ?????????????????????????????????????????????????? | | ?????????????????????????????????????????????????? | | ?????????????????????????????????????????????????? | | ?????????????????????????????????????????????????? | | ?????????????????????????????????????????????????? | | ?????????????????????????????????????????????????? | | ?????????????????????????????????????????????????? | | ?????????????????????????????????????????????????? | | ?????????????????????????????????????????????????? | | ?????????????????????????????????????????????????? | | ?????????????????????????????????????????????????? | | ?????????????????????????????????????????????????? | | ?????????????????????????????????????????????????? | | ?????????????????????????????????????????????????? | | ?????????????????????????????????????????????????? | | ?????????????????????????????????????????????????? | | ?????????????????????????????????????????????????? | | ?????????????????????????????????????????????????? | | ?????????????????????????????????????????????????? | | ?????????????????????????????????????????????????? | | ??????????????????????##############?????????????? | | ??????????????????????#[ ! [#?????????????? | | ??????????????????????# @ #?????????????? | | ??????????????????????#ss"s" " " " #?????????????? | | ??????????????????????# s"s" " " " ??????????????? | | ??????????????????????# "s" " " " #?????????????? | | ??????????????????????# " " " " " #?????????????? | | ??????????????????????#! " " " " " #?????????????? | | ??????????????????????# " " " " " #?????????????? | | ??????????????????????# "s" " " " #?????????????? | | ??????????????????????# " " " " " #?????????????? | | ??????????????????????#* " " " " " #?????????????? | | ??????????????????????# #?????????????? | | ??????????????????????#######/#############??????? | | ??????????????????????????# +? ! #??????? | | ??????????????????????????# # #??????? | | ??????????????????????????# # #??????? | | ??????????????????????????+ + """ ""?????????? | | ??????????????????????????# # """ ""?????????? | | ??????????????????????????# # """ ""?????????? | | ??????????????????????????# #? ?????????? | | ??????????????????????????# #? ?????????? | | ??????????????????????????# #??######????????? | | ??????????????????????????# #????????????????? | | ?????????????????####?#???# #????????????????? | | ?????????????????# ??# #????????????????? | | ?????????????????# ""??# #????????????????? | +----------------------------------------------------+ Best States ------------- Heat Dissipation 53 Energy Generation 21 Energy Capacity 350 Matter Stores 300 Matter Capacity 300 Sight Range 16 Terrain Scan Density 10 Armor Coverage 375 Evasion (%) 63 Targeting Accuracy 6 Recoil Reduction 2 Matter Filtering 30 Offensive Hacking 20 Item Schematics ----------------- None Robot Schematics ------------------ None Fabricated ------------ Nothing Alien Tech Used ----------------- None Achievements -------------- None Challenges ------------ None Game ------ Seed DirtyWaveGun Manual? 0 Play Time 01:08:11 Cumulative 25.9 hours Start 2024.04.29 @ 21:33:06 End 2024.04.29 @ 22:39:09 Sessions 1 Manual Loads 0 Difficulty Rogue Special Mode None Game No. 40 Rogue 38 Adventurer 2 Explorer 0 Win Type - Total 0 Types 0/0/0/0/0/0/0/0/0 Lore% 28 Gallery% 23 Achievement% 21 Wizard Run 0 Options --------- Layout 1 ASCII 0 Keyboard 0 Movement Mouse Keybinds 0 Fullscreen 1 Font 24/Smallcaps Map View 50x40 Zoom Use 0% Tactical HUD 0 Map Filters NONE Filters NONE Steam 1 RUN: b688ca4a-a883-4307-956f-6023eba7ba90